fUST/lending_fUST_20250609
["ID","MTS","AMOUNT","RATE_DAILY","PERIOD"]
[365068471,1749438638126,-427.1338818,0.00019452,2]
[365068472,1749438638136,-440.0,0.00019452,2]
[365068473,1749438638146,-417.28598079,0.00019452,2]
[365068474,1749438638156,-440.0,0.00019452,2]
[365068475,1749438638166,-440.0,0.00019452,2]
[365068476,1749438638175,-420.0,0.00019452,2]
[365068477,1749438638185,-440.0,0.00019452,2]
[365068478,1749438638195,-437.40985349,0.00019452,2]
[365068479,1749438638204,-320.0,0.00019452,2]
[365068480,1749438638214,-440.0,0.00019452,2]
[365068481,1749438638223,-350.0,0.00019452,2]
[365068482,1749438638233,-440.0,0.00019452,2]
[365068483,1749438638244,-440.0,0.00019452,2]
[365068484,1749438638257,-544.38,0.00019452,2]
[365068485,1749438638266,-440.0,0.00019452,2]
[365068486,1749438638276,-208.34080003,0.00019452,2]
[365068487,1749438638286,-228.26292153,0.00019452,2]
[365068488,1749438638297,-440.0,0.00019452,2]
[365068489,1749438638306,-440.0,0.00019452,2]
[365068491,1749438638316,-231.33763921,0.00019452,2]
[365068493,1749438638325,-440.0,0.00019452,2]
[365068495,1749438638336,-440.0,0.00019452,2]
[365068497,1749438638346,-440.0,0.00019452,2]
[365068499,1749438638355,-440.0,0.00019452,2]
[365068501,1749438638365,-154.51469344,0.00019452,2]
[365068503,1749438638374,-440.0,0.00019452,2]
[365068505,1749438638383,-440.0,0.00019452,2]
[365068507,1749438638394,-369.39189322,0.00019452,2]
[365068509,1749438638404,-440.0,0.00019452,2]
[365068511,1749438638415,-440.0,0.00019452,2]
[365068513,1749438638424,-440.0,0.00019452,2]
[365068515,1749438638434,-440.0,0.00019452,2]
[365068517,1749438638443,-1285.98,0.00019452,2]
[365068519,1749438638453,-440.0,0.00019452,2]
[365068521,1749438638463,-440.0,0.00019452,2]
[365068523,1749438638473,-470.59798681,0.00019452,2]
[365068525,1749438638482,-440.0,0.00019452,2]
[365068527,1749438638491,-418.7748947,0.00019452,2]
[365068529,1749438638501,-446.36150275,0.00019452,2]
[365068531,1749438638511,-428.59589893,0.00019452,2]
[365068533,1749438638521,-440.0,0.00019452,2]
[365068536,1749438638531,-633.55,0.00019452,2]
[365068538,1749438638540,-705.28,0.00019452,2]
[365068540,1749438638550,-429.74864115,0.00019452,2]
[365068542,1749438638564,-440.0,0.00019452,2]
[365068544,1749438638573,-440.0,0.00019452,2]
[365068546,1749438638583,-434.72207128,0.00019452,2]
[365068548,1749438638594,-440.0,0.00019452,2]
[365068550,1749438638604,-420.0,0.00019452,2]
[365068552,1749438638614,-430.43529529,0.00019452,2]
[365068554,1749438638624,-440.0,0.00019452,2]
[365068556,1749438638634,-440.0,0.00019452,2]
[365068558,1749438638645,-420.0,0.00019452,2]
[365068560,1749438638655,-440.0,0.00019452,2]
[365068563,1749438638665,-493.16,0.00019452,2]
[365068565,1749438638675,-440.0,0.00019452,2]
[365068567,1749438638684,-440.0,0.00019452,2]
[365068569,1749438638694,-440.0,0.00019452,2]
[365068571,1749438638704,-443.9973696,0.00019452,2]
[365068573,1749438638714,-440.0,0.00019452,2]
[365068575,1749438638724,-952.68,0.00019452,2]
[365068577,1749438638733,-440.0,0.00019452,2]
[365068579,1749438638742,-829.74,0.00019452,2]
[365068581,1749438638751,-440.0,0.00019452,2]
[365068583,1749438638761,-440.0,0.00019452,2]
[365068585,1749438638771,-788.78,0.00019452,2]
[365068587,1749438638780,-440.0,0.00019452,2]
[365068589,1749438638790,-440.0,0.00019452,2]
[365068591,1749438638799,-390.0,0.00019452,2]
[365068593,1749438638809,-440.0,0.00019452,2]
[365068606,1749438638917,-971.42,0.00019452,2]
[365068609,1749438638941,-440.0,0.00019452,2]
[365068611,1749438638951,-440.0,0.00019452,2]
[365068613,1749438638962,-436.32854179,0.00019452,2]
[365068615,1749438638972,-445.75,0.00019452,2]
[365068617,1749438638982,-500.0,0.00019473,2]
[365068620,1749438638992,-500.62763872,0.00019473,2]
[365068622,1749438639003,-507.25751979,0.00019473,2]
[365068624,1749438639013,-510.65855397,0.00019473,2]
[365068626,1749438639023,-501.40887103,0.00019473,2]
[365068628,1749438639033,-404.82186304,0.00019473,2]
[365068630,1749438639042,-503.83066426,0.00019473,2]
[365068632,1749438639051,-507.58203346,0.00019473,2]
[365068634,1749438639061,-548.12573953,0.00019473,2]
[365068635,1749438639070,-501.54401016,0.00019473,2]
[365068636,1749438639079,-500.0,0.00019473,2]
[365068637,1749438639088,-502.30668612,0.00019473,2]
[365068638,1749438639098,-151.0,0.00019479,2]
[365068639,1749438639107,-235.54694619,0.00019507,2]
[365068640,1749438639117,-626.32991614,0.00019521,2]
[365068641,1749438639127,-2000.0,0.00019644,2]
[365068642,1749438639136,-2000.0,0.00019644,5]
[365068643,1749438639146,-1000.0,0.00019644,7]
[365068644,1749438639157,-501.71250655,0.00019702,2]
[365068645,1749438639166,-1003.44335296,0.00019721,2]
[365068646,1749438639176,-1000.0,0.00019721,2]
[365068647,1749438639185,-1023.47336494,0.00019721,2]
[365068648,1749438639194,-440.0,0.00019726,2]
[365068649,1749438639204,-476.37783283,0.00019726,2]
[365068650,1749438639214,-440.0,0.00019726,2]
[365068651,1749438639223,-169.94204487,0.00019726,2]
[365068652,1749438639233,-316.06816235,0.00019726,2]
[365068653,1749438639242,-440.0,0.00019726,2]
[365068654,1749438639256,-440.0,0.00019726,2]
[365068655,1749438639266,-440.0,0.00019726,2]
[365068656,1749438639275,-440.0,0.00019726,2]
[365068657,1749438639284,-241.25926654,0.00019726,2]
[365068659,1749438639295,-440.0,0.00019726,2]
[365068661,1749438639304,-440.0,0.00019726,2]
[365068663,1749438639314,-440.0,0.00019726,2]
[365068665,1749438639327,-440.0,0.00019726,2]
[365068667,1749438639337,-440.0,0.00019726,2]
[365068669,1749438639348,-440.0,0.00019726,2]
[365068671,1749438639358,-318.83011424,0.00019726,2]
[365068673,1749438639368,-400.16891728,0.00019726,2]
[365068675,1749438639378,-440.0,0.00019726,2]
[365068677,1749438639388,-440.0,0.00019726,2]
[365068679,1749438639398,-410.0,0.00019726,2]
[365068681,1749438639408,-426.97087463,0.00019726,2]
[365068683,1749438639419,-410.0,0.00019726,2]
[365068685,1749438639429,-410.0,0.00019726,2]
[365068687,1749438639439,-440.0,0.00019726,2]
[365068689,1749438639449,-289.17,0.00019726,2]
[365068691,1749438639458,-440.0,0.00019726,2]
[365068693,1749438639469,-424.61467238,0.00019726,2]
[365068695,1749438639478,-406.9651575,0.00019726,2]
[365068697,1749438639488,-376.11544116,0.00019726,2]
[365068699,1749438639498,-440.0,0.00019726,2]
[365068701,1749438639507,-440.0,0.00019726,2]
[365068703,1749438639517,-440.0,0.00019726,2]
[365068705,1749438639527,-440.0,0.00019726,2]
[365068707,1749438639536,-440.0,0.00019726,2]
[365068709,1749438639546,-410.0,0.00019726,2]
[365068711,1749438639556,-410.0,0.00019726,2]
[365068713,1749438639566,-410.0,0.00019726,2]
[365068715,1749438639576,-440.0,0.00019726,2]
[365068717,1749438639585,-440.0,0.00019726,2]
[365068719,1749438639595,-440.0,0.00019726,2]
[365068722,1749438639605,-440.0,0.00019726,2]
[365068724,1749438639615,-289.51514406,0.00019726,2]
[365068726,1749438639625,-408.49409667,0.00019726,2]
[365068728,1749438639634,-416.97292605,0.00019726,2]
[365068730,1749438639644,-440.0,0.00019726,2]
[365068732,1749438639654,-440.0,0.00019726,2]
[365068734,1749438639664,-440.0,0.00019726,2]
[365068736,1749438639674,-437.01982406,0.00019726,2]
[365068738,1749438639684,-440.0,0.00019726,2]
[365068740,1749438639693,-440.0,0.00019726,2]
[365068742,1749438639704,-440.0,0.00019726,2]
[365068744,1749438639714,-440.0,0.00019726,2]
[365068746,1749438639724,-440.0,0.00019726,2]
[365068748,1749438639734,-440.0,0.00019726,2]
[365068750,1749438639743,-350.0,0.00019726,2]
[365068752,1749438639753,-440.0,0.00019726,2]
[365068754,1749438639763,-440.0,0.00019726,2]
[365068756,1749438639773,-544.38,0.00019726,2]
[365068758,1749438639782,-440.0,0.00019726,2]
[365068760,1749438639792,-440.0,0.00019726,2]
[365068762,1749438639802,-440.0,0.00019726,2]
[365068764,1749438639812,-440.0,0.00019726,2]
[365068767,1749438639822,-440.0,0.00019726,2]
[365068769,1749438639832,-396.86308249,0.00019726,2]
[365068771,1749438639842,-440.0,0.00019726,2]
[365068773,1749438639852,-440.0,0.00019726,2]
[365068775,1749438639862,-440.0,0.00019726,2]
[365068777,1749438639871,-440.0,0.00019726,2]
[365068779,1749438639880,-440.0,0.00019726,2]
[365068781,1749438639890,-445.17793295,0.00019726,2]
[365068783,1749438639900,-440.0,0.00019726,2]
[365068785,1749438639911,-1285.98,0.00019726,2]
[365068787,1749438639922,-440.0,0.00019726,2]
[365068789,1749438639932,-440.0,0.00019726,2]
[365068791,1749438639942,-440.0,0.00019726,2]
[365068793,1749438639951,-440.0,0.00019726,2]
[365068795,1749438639961,-633.55,0.00019726,2]
[365068797,1749438639971,-705.28,0.00019726,2]
[365068799,1749438639980,-440.0,0.00019726,2]
[365068801,1749438639990,-440.0,0.00019726,2]
[365068803,1749438639999,-440.0,0.00019726,2]
[365068805,1749438640009,-440.0,0.00019726,2]
[365068808,1749438640019,-440.0,0.00019726,2]
[365068811,1749438640028,-440.0,0.00019726,2]
[365068816,1749438640038,-493.16,0.00019726,2]
[365068818,1749438640049,-440.0,0.00019726,2]
[365068821,1749438640059,-410.0,0.00019726,2]
[365068823,1749438640069,-440.0,0.00019726,2]
[365068825,1749438640079,-440.0,0.00019726,2]
[365068827,1749438640088,-952.68,0.00019726,2]
[365068829,1749438640098,-440.0,0.00019726,2]
[365068831,1749438640108,-829.74,0.00019726,2]
[365068833,1749438640117,-440.0,0.00019726,2]
[365068835,1749438640127,-440.0,0.00019726,2]
[365068837,1749438640138,-788.78,0.00019726,2]
[365068839,1749438640147,-440.0,0.00019726,2]
[365068841,1749438640157,-440.0,0.00019726,2]
[365068844,1749438640167,-440.0,0.00019726,2]
[365068846,1749438640177,-971.42,0.00019726,2]
[365068848,1749438640187,-440.0,0.00019726,2]
[365068850,1749438640197,-410.0,0.00019726,2]
[365068852,1749438640206,-445.75,0.00019726,2]
[365068854,1749438640216,-626.32991614,0.00019728,2]
[365068856,1749438640226,-502.75212493,0.00019745,2]
[365068858,1749438640237,-596.39836697,0.00019745,2]
[365068860,1749438640249,-502.48795334,0.00019745,2]
[365068862,1749438640259,-505.15630989,0.00019745,2]
[365068864,1749438640269,-504.4971768,0.00019745,2]
[365068866,1749438640279,-172.74989611,0.00019745,2]
[365068868,1749438640290,-503.21973661,0.00019745,2]
[365068870,1749438640300,-322.90302304,0.00019745,2]
[365068872,1749438640309,-198.17261609,0.00019843,2]
[365068874,1749438640319,-2000.0,0.00019918,2]
[365068876,1749438640330,-2000.0,0.00019918,5]
[365068878,1749438640340,-1000.0,0.00019918,7]
[365068880,1749438640350,-626.32991614,0.00019934,2]
[365068882,1749438640360,-504.20707564,0.00019973,2]
[365068884,1749438640370,-500.0,0.00019973,2]
[365068886,1749438640379,-503.176464,0.00019973,2]
[365068888,1749438640390,-500.0,0.00019973,2]
[365068890,1749438640400,-507.52815332,0.00019973,2]
[365068892,1749438640409,-500.0,0.00019973,2]
[365068894,1749438640420,-453.30948662,0.0002,2]
[365068896,1749438640431,-440.0,0.0002,2]
[365068899,1749438640441,-440.0,0.0002,2]
[365068901,1749438640451,-440.0,0.0002,2]
[365068903,1749438640460,-440.0,0.0002,2]
[365068904,1749438640470,-410.0,0.0002,2]
[365068907,1749438640480,-400.09794815,0.0002,2]
[365068909,1749438640490,-440.0,0.0002,2]
[365068911,1749438640501,-440.0,0.0002,2]
[365068913,1749438640511,-486.29651446,0.0002,2]
[365068915,1749438640521,-267.31337355,0.0002,2]
[365068917,1749438640530,-396.15880836,0.0002,2]
[365068919,1749438640541,-440.0,0.0002,2]
[365068921,1749438640551,-313.29,0.0002,2]
[365068923,1749438640562,-408.19750712,0.0002,2]
[365068926,1749438640571,-418.49876478,0.0002,2]
[365068928,1749438640581,-440.0,0.0002,2]
[365068930,1749438640592,-440.0,0.0002,2]
[365068932,1749438640602,-400.0,0.0002,2]
[365068934,1749438640611,-394.6117867,0.0002,2]
[365068936,1749438640621,-440.0,0.0002,2]
[365068938,1749438640630,-440.0,0.0002,2]
[365068940,1749438640641,-440.0,0.0002,2]
[365068943,1749438640652,-32548.82922413,0.0002,2]
[365068945,1749438640661,-425.79823769,0.0002,2]
[365068947,1749438640671,-440.0,0.0002,2]
[365068949,1749438640680,-440.0,0.0002,2]
[365068951,1749438640689,-440.0,0.0002,2]
[365068953,1749438640699,-440.0,0.0002,2]
[365068955,1749438640708,-440.0,0.0002,2]
[365068957,1749438640718,-440.0,0.0002,2]
[365068959,1749438640727,-440.0,0.0002,2]
[365068961,1749438640737,-440.0,0.0002,2]
[365068963,1749438640746,-400.32682135,0.0002,2]
[365068965,1749438640756,-432.98337971,0.0002,2]
[365068967,1749438640765,-350.0,0.0002,2]
[365068969,1749438640775,-440.0,0.0002,2]
[365068971,1749438640785,-458.2,0.0002,2]
[365068973,1749438640795,-544.38,0.0002,2]
[365068975,1749438640805,-440.0,0.0002,2]
[365068977,1749438640814,-440.0,0.0002,2]
[365068979,1749438640824,-440.0,0.0002,2]
[365068981,1749438640834,-440.0,0.0002,2]
[365068983,1749438640844,-440.0,0.0002,2]
[365068985,1749438640853,-440.0,0.0002,2]
[365068988,1749438640863,-440.0,0.0002,2]
[365068990,1749438640873,-440.0,0.0002,2]
[365068992,1749438640883,-440.0,0.0002,2]
[365068994,1749438640892,-440.0,0.0002,2]
[365068996,1749438640902,-440.0,0.0002,2]
[365068998,1749438640911,-1285.98,0.0002,2]
[365069000,1749438640921,-440.0,0.0002,2]
[365069002,1749438640930,-440.0,0.0002,2]
[365069004,1749438640940,-337.79747105,0.0002,2]
[365069006,1749438640949,-440.0,0.0002,2]
[365069008,1749438640959,-633.55,0.0002,2]
[365069010,1749438640968,-705.28,0.0002,2]
[365069012,1749438640978,-440.0,0.0002,2]
[365069014,1749438640988,-440.0,0.0002,2]
[365069016,1749438640997,-440.0,0.0002,2]
[365069018,1749438641007,-440.0,0.0002,2]
[365069020,1749438641016,-501.67205913,0.0002,2]
[365069022,1749438641025,-440.0,0.0002,2]
[365069024,1749438641035,-493.16,0.0002,2]
[365069026,1749438641044,-440.0,0.0002,2]
[365069028,1749438641054,-458.76837359,0.0002,2]
[365069030,1749438641064,-440.0,0.0002,2]
[365069032,1749438641073,-952.68,0.0002,2]
[365069034,1749438641084,-440.0,0.0002,2]
[365069036,1749438641094,-829.74,0.0002,2]
[365069038,1749438641104,-440.0,0.0002,2]
[365069040,1749438641114,-440.0,0.0002,2]
[365069042,1749438641123,-788.78,0.0002,2]
[365069044,1749438641132,-440.0,0.0002,2]
[365069047,1749438641143,-440.0,0.0002,2]
[365069049,1749438641152,-440.0,0.0002,2]
[365069051,1749438641162,-971.42,0.0002,2]
[365069053,1749438641171,-440.0,0.0002,2]
[365069055,1749438641180,-445.75,0.0002,2]
[365069057,1749438641189,-163.439,0.00020138,2]
[365069059,1749438641198,-626.32991614,0.00020141,2]
[365069061,1749438641207,-169.454706,0.00020187,2]
[365069063,1749438641217,-2000.0,0.00020192,2]
[365069065,1749438641226,-2000.0,0.00020192,5]
[365069077,1749438641337,-1000.0,0.00020192,7]
[365069079,1749438641348,-420.0,0.00020226,2]
[365069081,1749438641359,-440.0,0.00020273,2]
[365069083,1749438641369,-440.0,0.00020273,2]
[365069085,1749438641379,-440.0,0.00020273,2]
[365069087,1749438641388,-440.0,0.00020273,2]
[365069089,1749438641400,-183.78333538,0.00020273,2]
[365069093,1749438641428,-256.21666462,0.00020273,2]
[365069095,1749438641439,-440.0,0.00020273,2]
[365069097,1749438641449,-440.0,0.00020273,2]
[365069099,1749438641458,-428.92605111,0.00020273,2]
[365069125,1749438641707,-440.0,0.00019178,2]
[365069127,1749438641717,-440.0,0.00019452,2]
[365069129,1749438641727,-11.07394889,0.00020273,2]
[365069131,1749438641737,-440.0,0.00020273,2]
[365069133,1749438641746,-440.0,0.00020273,2]
[365069135,1749438641756,-440.0,0.00020273,2]
[365069137,1749438641765,-440.0,0.00020273,2]
[365069139,1749438641775,-440.0,0.00020273,2]
[365069142,1749438641785,-440.0,0.00020273,2]
[365069144,1749438641795,-440.0,0.00020273,2]
[365069146,1749438641805,-440.0,0.00020273,2]
[365069148,1749438641814,-440.0,0.00020273,2]
[365069150,1749438641823,-440.0,0.00020273,2]
[365069152,1749438641832,-440.0,0.00020273,2]
[365069154,1749438641841,-246.81774683,0.00020273,2]
[365069156,1749438641851,-440.0,0.00020273,2]
[365069158,1749438641860,-544.38,0.00020273,2]
[365069160,1749438641869,-440.0,0.00020273,2]
[365069162,1749438641878,-440.0,0.00020273,2]
[365069164,1749438641891,-440.0,0.00020273,2]
[365069166,1749438641901,-440.0,0.00020273,2]
[365069168,1749438641912,-440.0,0.00020273,2]
[365069170,1749438641922,-440.0,0.00020273,2]
[365069172,1749438641931,-440.0,0.00020273,2]
[365069174,1749438641940,-440.0,0.00020273,2]
[365069176,1749438641950,-440.0,0.00020273,2]
[365069178,1749438641960,-1285.98,0.00020273,2]
[365069180,1749438641970,-440.0,0.00020273,2]
[365069182,1749438641979,-633.55,0.00020273,2]
[365069184,1749438641989,-705.28,0.00020273,2]
[365069186,1749438641999,-277.02726689,0.00020273,2]
[365069188,1749438642009,-440.0,0.00020273,2]
[365069190,1749438642018,-440.0,0.00020273,2]
[365069192,1749438642028,-440.0,0.00020273,2]
[365069194,1749438642039,-440.0,0.00020273,2]
[365069197,1749438642048,-493.16,0.00020273,2]
[365069198,1749438642057,-440.0,0.00020273,2]
[365069201,1749438642067,-440.0,0.00020273,2]
[365069203,1749438642077,-952.68,0.00020273,2]
[365069205,1749438642087,-440.0,0.00020273,2]
[365069207,1749438642096,-829.74,0.00020273,2]
[365069209,1749438642105,-440.0,0.00020273,2]
[365069211,1749438642115,-440.0,0.00020273,2]
[365069213,1749438642124,-788.78,0.00020273,2]
[365069215,1749438642134,-440.0,0.00020273,2]
[365069217,1749438642143,-440.0,0.00020273,2]
[365069219,1749438642153,-440.0,0.00020273,2]
[365069221,1749438642164,-971.42,0.00020273,2]
[365069223,1749438642174,-440.0,0.00020273,2]
[365069225,1749438642184,-445.75,0.00020273,2]
[365069227,1749438642194,-626.32991614,0.00020348,3]
[365069229,1749438642204,-2000.0,0.00020466,2]
[365069231,1749438642213,-2000.0,0.00020466,5]
[365069234,1749438642223,-1000.0,0.00020466,7]
[365069236,1749438642232,-1001.34476036,0.00020508,2]
[365069238,1749438642242,-522.79501899,0.00020521,2]
[365069240,1749438642256,-505.33537395,0.00020521,2]
[365069242,1749438642266,-507.04944435,0.00020521,2]
[365069244,1749438642275,-407.38,0.00020538,3]
[365069246,1749438642286,-440.0,0.00020547,2]
[365069248,1749438642295,-530.99,0.00020547,2]
[365069250,1749438642304,-440.0,0.00020547,2]
[365069252,1749438642314,-440.0,0.00020547,2]
[365069254,1749438642324,-440.0,0.00020547,2]
[365069256,1749438642334,-440.0,0.00020547,2]
[365069258,1749438642344,-544.38,0.00020547,2]
[365069260,1749438642353,-440.0,0.00020547,2]
[365069262,1749438642363,-440.0,0.00020547,2]
[365069264,1749438642372,-440.0,0.00020547,2]
[365069266,1749438642382,-440.0,0.00020547,2]
[365069268,1749438642392,-440.0,0.00020547,2]
[365069270,1749438642401,-440.0,0.00020547,2]
[365069272,1749438642410,-440.0,0.00020547,2]
[365069274,1749438642420,-440.0,0.00020547,2]
[365069276,1749438642429,-1285.98,0.00020547,2]
[365069278,1749438642439,-440.0,0.00020547,2]
[365069280,1749438642448,-633.55,0.00020547,2]
[365069282,1749438642458,-705.28,0.00020547,2]
[365069284,1749438642467,-440.0,0.00020547,2]
[365069286,1749438642477,-160.44,0.00020547,2]
[365069288,1749438642487,-440.0,0.00020547,2]
[365069290,1749438642497,-493.16,0.00020547,2]
[365069292,1749438642506,-430.0,0.00020547,2]
[365069294,1749438642517,-952.68,0.00020547,2]
[365069296,1749438642527,-440.0,0.00020547,2]
[365069298,1749438642536,-829.74,0.00020547,2]
[365069300,1749438642546,-276.05,0.00020547,2]
[365069302,1749438642555,-788.78,0.00020547,2]
[365069304,1749438642565,-440.0,0.00020547,2]
[365069306,1749438642575,-440.0,0.00020547,2]
[365069308,1749438642585,-440.0,0.00020547,2]
[365069310,1749438642594,-971.42,0.00020547,2]
[365069313,1749438642603,-440.0,0.00020547,2]
[365069315,1749438642613,-445.75,0.00020547,2]
[365069317,1749438642622,-626.32991614,0.00020555,3]
[365069319,1749438642632,-335.06,0.000206,2]
[365069321,1749438642641,-757.37,0.000206,2]
[365069323,1749438642652,-198.17261609,0.00020614,2]
[365069325,1749438642662,-229.64266968,0.00020621,2]
[365069327,1749438642671,-424.05420114,0.00020621,2]
[365069329,1749438642681,-213.08899333,0.00020621,2]
[365069331,1749438642690,-834.7738823,0.00020621,2]
[365069333,1749438642699,-160.0,0.00020621,2]
[365069335,1749438642709,-160.0,0.00020621,2]
[365069337,1749438642719,-2000.0,0.0002074,2]
[365069338,1749438642728,-2000.0,0.0002074,5]
[365069339,1749438642737,-1000.0,0.0002074,7]
[365069341,1749438642746,-626.32991614,0.00020762,3]
[365069343,1749438642756,-900.0,0.00020765,2]
[365069345,1749438642766,-160.44949506,0.00020775,2]
[365069347,1749438642776,-500.0,0.00020775,2]
[365069349,1749438642785,-500.0,0.00020775,2]
[365069351,1749438642795,-500.0,0.00020777,2]
[365069354,1749438642805,-440.0,0.00020821,2]
[365069356,1749438642815,-440.0,0.00020821,2]
[365069357,1749438642824,-440.0,0.00020821,2]
[365069358,1749438642833,-440.0,0.00020821,2]
[365069359,1749438642842,-440.0,0.00020821,2]
[365069360,1749438642852,-544.38,0.00020821,2]
[365069362,1749438642861,-440.0,0.00020821,2]
[365069363,1749438642871,-440.0,0.00020821,2]
[365069364,1749438642881,-440.0,0.00020821,2]
[365069365,1749438642890,-440.0,0.00020821,2]
[365069366,1749438642900,-440.0,0.00020821,2]
[365069368,1749438642909,-440.0,0.00020821,2]
[365069369,1749438642919,-440.0,0.00020821,2]
[365069371,1749438642928,-440.0,0.00020821,2]
[365069372,1749438642937,-1285.98,0.00020821,2]
[365069373,1749438642946,-440.0,0.00020821,2]
[365069374,1749438642956,-461.75176864,0.00020821,2]
[365069375,1749438643051,-171.79823136,0.00020821,2]
[365069376,1749438643061,-244.60705261,0.00020821,2]
[365069377,1749438643073,-460.67294739,0.00020821,2]
[365069379,1749438643083,-70.82705261,0.00020821,2]
[365069380,1749438643113,-201.84294739,0.00020821,2]
[365069381,1749438643123,-440.0,0.00020821,2]
[365069382,1749438643132,-25.74508775,0.00020821,2]
[365069383,1749438643144,-467.41491225,0.00020821,2]
[365069384,1749438643153,-952.68,0.00020821,2]
[365069385,1749438643162,-440.0,0.00020821,2]
[365069386,1749438643172,-829.74,0.00020821,2]
[365069387,1749438643181,-788.78,0.00020821,2]
[365069388,1749438643191,-440.0,0.00020821,2]
[365069389,1749438643200,-440.0,0.00020821,2]
[365069390,1749438643210,-440.0,0.00020821,2]
[365069391,1749438643219,-971.42,0.00020821,2]
[365069392,1749438643229,-440.0,0.00020821,2]
[365069393,1749438643238,-445.75,0.00020821,2]
[365069394,1749438643249,-600.0,0.00020873,2]
[365069396,1749438643262,-500.0,0.00020873,2]
[365069397,1749438643271,-23774.17119131,0.000209,2]
[365069398,1749438643282,-26387.42880869,0.000209,2]
[365069399,1749438643293,-626.32991614,0.00020969,4]
[365069400,1749438643303,-2000.0,0.00021014,2]
[365069401,1749438643312,-2000.0,0.00021014,5]
[365069402,1749438643324,-1000.0,0.00021014,7]
[365069403,1749438643336,-2872.5,0.00021095,2]
[365069404,1749438643452,-2872.5,0.00021095,2]
[365069405,1749438643463,-440.0,0.00021095,2]
[365069406,1749438643476,-440.0,0.00021095,2]
[365069407,1749438643485,-197.52447671,0.00021095,2]
[365069408,1749438643495,-440.0,0.00021095,2]
[365069409,1749438643505,-440.0,0.00021095,2]
[365069410,1749438643516,-544.38,0.00021095,2]
[365069411,1749438643526,-440.0,0.00021095,2]
[365069412,1749438643536,-440.0,0.00021095,2]
[365069413,1749438643546,-440.0,0.00021095,2]
[365069414,1749438643556,-440.0,0.00021095,2]
[365069415,1749438643568,-436.38,0.00021095,2]
[365069416,1749438643578,-440.0,0.00021095,2]
[365069417,1749438643590,-1285.98,0.00021095,2]
[365069418,1749438643600,-633.55,0.00021095,2]
[365069419,1749438643610,-705.28,0.00021095,2]
[365069420,1749438643620,-284.63,0.00021095,2]
[365069421,1749438643630,-493.16,0.00021095,2]
[365069423,1749438643639,-952.68,0.00021095,2]
[365069424,1749438643649,-829.74,0.00021095,2]
[365069426,1749438643659,-788.78,0.00021095,2]
[365069428,1749438643668,-971.42,0.00021095,2]
[365069430,1749438643679,-445.75,0.00021095,2]
[365069432,1749438643689,-626.32991614,0.00021176,4]
[365069434,1749438643699,-2000.0,0.00021288,2]
[365069435,1749438643709,-2000.0,0.00021288,5]
[365069436,1749438643718,-1000.0,0.00021288,7]
[365069437,1749438643728,-1020.55502605,0.00021323,2]